[Event "Titled Tuesday Blitz November 01 Late 2022"]
[White "Svane, Rasmus"]
[Black "Drygalov, Sergey"]
[WhiteFideId "4657101"]
[BlackFideId "24171743"]
[WhiteElo "2674"]
[BlackElo "2528"]
[Result "1-0"]
[Round "05"]
[TimeControl "180+1"]
[Date "2022.11.01"]
[WhiteClock "0:00:19"]
[BlackClock "0:00:01"]

1. Nf3 {[%clk 0:03:00]}  d5 {[%clk 0:02:59]} 2. g3 {[%clk 0:03:00]}  g6 {[%clk 0:02:59]} 3. Bg2 {[%clk 0:03:00]}  Bg7 {[%clk 0:03:00]} 4. d4 {[%clk 0:03:01]}  Nf6 {[%clk 0:02:56]} 5. O-O {[%clk 0:03:02]}  O-O {[%clk 0:02:56]} 6. c4 {[%clk 0:03:02]}  c6 {[%clk 0:02:55]} 7. Qb3 {[%clk 0:03:02]}  Qb6 {[%clk 0:02:52]} 8. Nc3 {[%clk 0:03:02]}  Rd8 {[%clk 0:02:49]} 9. Bd2 {[%clk 0:03:02]}  Bf5 {[%clk 0:02:47]} 10. Na4 {[%clk 0:03:02]}  Qxb3 {[%clk 0:02:40]} 11. axb3 {[%clk 0:03:03]}  Na6 {[%clk 0:02:40]} 12. Rfc1 {[%clk 0:03:00]}  h6 {[%clk 0:02:29]} 13. Ba5 {[%clk 0:02:47]}  Rdc8 {[%clk 0:02:24]} 14. e3 {[%clk 0:02:47]}  Be4 {[%clk 0:02:13]} 15. Be1 {[%clk 0:02:42]}  e6 {[%clk 0:02:05]} 16. Nc3 {[%clk 0:02:42]}  Bf5 {[%clk 0:01:55]} 17. Ra4 {[%clk 0:02:34]}  Nc7 {[%clk 0:01:49]} 18. h3 {[%clk 0:02:34]}  g5 {[%clk 0:01:49]} 19. g4 {[%clk 0:02:25]}  Bh7 {[%clk 0:01:48]} 20. Rca1 {[%clk 0:02:17]}  a6 {[%clk 0:01:48]} 21. Ne5 {[%clk 0:02:17]}  Bc2 {[%clk 0:01:16]} 22. R4a3 {[%clk 0:02:12]}  Bf8 {[%clk 0:01:16]} 23. c5 {[%clk 0:02:13]}  Re8 {[%clk 0:01:08]} 24. Bf1 {[%clk 0:02:12]}  Rac8 {[%clk 0:00:55]} 25. b4 {[%clk 0:02:11]}  Bh7 {[%clk 0:00:40]} 26. R3a2 {[%clk 0:02:11]}  Bg7 {[%clk 0:00:38]} 27. b5 {[%clk 0:02:05]}  axb5 {[%clk 0:00:33]} 28. Ra7 {[%clk 0:01:57]}  Ra8 {[%clk 0:00:31]} 29. R1a2 {[%clk 0:01:56]}  Rxa7 {[%clk 0:00:25]} 30. Rxa7 {[%clk 0:01:57]}  Rb8 {[%clk 0:00:25]} 31. Nxc6 {[%clk 0:01:56]}  bxc6 {[%clk 0:00:21]} 32. Rxc7 {[%clk 0:01:57]}  b4 {[%clk 0:00:20]} 33. Na4 {[%clk 0:01:55]}  Ra8 {[%clk 0:00:19]} 34. b3 {[%clk 0:01:42]}  Bc2 {[%clk 0:00:19]} 35. Bxb4 {[%clk 0:01:42]}  Bxb3 {[%clk 0:00:19]} 36. Nb6 {[%clk 0:01:43]}  Ra1 {[%clk 0:00:20]} 37. Rxc6 {[%clk 0:01:29]}  Bc4 {[%clk 0:00:19]} 38. Nxc4 {[%clk 0:01:29]}  dxc4 {[%clk 0:00:20]} 39. Rc8+ {[%clk 0:01:25]}  Kh7 {[%clk 0:00:20]} 40. c6 {[%clk 0:01:26]}  Nd5 {[%clk 0:00:10]} 41. c7 {[%clk 0:01:27]}  Kg6 {[%clk 0:00:09]} 42. Kg2 {[%clk 0:01:17]}  Ra7 {[%clk 0:00:09]} 43. Bd6 {[%clk 0:00:51]}  c3 {[%clk 0:00:09]} 44. Bd3+ {[%clk 0:00:52]}  f5 {[%clk 0:00:07]} 45. gxf5+ {[%clk 0:00:46]}  exf5 {[%clk 0:00:08]} 46. e4 {[%clk 0:00:41]}  Nf4+ {[%clk 0:00:08]} 47. Bxf4 {[%clk 0:00:40]}  gxf4 {[%clk 0:00:09]} 48. exf5+ {[%clk 0:00:41]}  Kh5 {[%clk 0:00:09]} 49. Be2+ {[%clk 0:00:20]}  Kg5 {[%clk 0:00:08]} 50. f6 {[%clk 0:00:20]}  Rxc7 {[%clk 0:00:01]} 51. Rxc7 {[%clk 0:00:19]} 1-0


[Site "https://www.chess.com"]

[Event "Titled Tuesday Blitz November 01 Late 2022"]
[White "Taboas Rodriguez, Daniel"]
[Black "Haszon, David"]
[WhiteFideId "2208466"]
[BlackFideId "733610"]
[WhiteElo "2429"]
[BlackElo "2211"]
[Result "1-0"]
[Round "05"]
[TimeControl "180+1"]
[Date "2022.11.02"]
[WhiteClock "0:00:28"]
[BlackClock "0:00:13"]

1. d4 {[%clk 0:03:00]}  Nf6 {[%clk 0:02:58]} 2. Nf3 {[%clk 0:03:00]}  g6 {[%clk 0:02:57]} 3. c4 {[%clk 0:03:01]}  Bg7 {[%clk 0:02:57]} 4. Nc3 {[%clk 0:03:01]}  d5 {[%clk 0:02:57]} 5. cxd5 {[%clk 0:03:02]}  Nxd5 {[%clk 0:02:57]} 6. e4 {[%clk 0:03:02]}  Nxc3 {[%clk 0:02:56]} 7. bxc3 {[%clk 0:03:03]}  O-O {[%clk 0:02:56]} 8. Be2 {[%clk 0:03:03]}  c5 {[%clk 0:02:55]} 9. O-O {[%clk 0:03:04]}  Nc6 {[%clk 0:02:51]} 10. Be3 {[%clk 0:02:58]}  cxd4 {[%clk 0:02:43]} 11. cxd4 {[%clk 0:02:59]}  Bg4 {[%clk 0:02:33]} 12. d5 {[%clk 0:02:58]}  Bxf3 {[%clk 0:02:20]} 13. Bxf3 {[%clk 0:02:57]}  Ne5 {[%clk 0:02:11]} 14. Be2 {[%clk 0:02:56]}  Rc8 {[%clk 0:02:12]} 15. Rc1 {[%clk 0:02:49]}  Qa5 {[%clk 0:02:10]} 16. Qb3 {[%clk 0:02:47]}  b6 {[%clk 0:02:00]} 17. a4 {[%clk 0:02:24]}  Nd7 {[%clk 0:01:49]} 18. Qb5 {[%clk 0:02:23]}  Qxb5 {[%clk 0:01:27]} 19. axb5 {[%clk 0:02:15]}  Nc5 {[%clk 0:01:27]} 20. f3 {[%clk 0:02:15]}  e6 {[%clk 0:01:25]} 21. Bc4 {[%clk 0:02:13]}  exd5 {[%clk 0:01:18]} 22. Bxd5 {[%clk 0:02:14]}  Nd3 {[%clk 0:01:08]} 23. Rc6 {[%clk 0:02:06]}  Nb4 {[%clk 0:01:08]} 24. Rfc1 {[%clk 0:01:43]}  Nxc6 {[%clk 0:01:03]} 25. bxc6 {[%clk 0:01:44]}  Be5 {[%clk 0:01:02]} 26. f4 {[%clk 0:01:41]}  Bc7 {[%clk 0:01:02]} 27. Kf2 {[%clk 0:01:32]}  a5 {[%clk 0:00:56]} 28. Bc4 {[%clk 0:01:31]}  Rfd8 {[%clk 0:00:53]} 29. Ke2 {[%clk 0:01:29]}  a4 {[%clk 0:00:47]} 30. Ra1 {[%clk 0:01:19]}  Ra8 {[%clk 0:00:44]} 31. e5 {[%clk 0:01:17]}  Rdb8 {[%clk 0:00:38]} 32. e6 {[%clk 0:00:41]}  fxe6 {[%clk 0:00:36]} 33. Bxe6+ {[%clk 0:00:42]}  Kf8 {[%clk 0:00:30]} 34. Rd1 {[%clk 0:00:41]}  a3 {[%clk 0:00:28]} 35. Rd7 {[%clk 0:00:40]}  a2 {[%clk 0:00:24]} 36. Bd4 {[%clk 0:00:38]}  a1=Q {[%clk 0:00:19]} 37. Bxa1 {[%clk 0:00:38]}  Rxa1 {[%clk 0:00:19]} 38. Rxc7 {[%clk 0:00:39]}  Re8 {[%clk 0:00:16]} 39. Rf7+ {[%clk 0:00:32]}  Kg8 {[%clk 0:00:15]} 40. Re7+ {[%clk 0:00:32]}  Kf8 {[%clk 0:00:15]} 41. Rxe8+ {[%clk 0:00:33]}  Kxe8 {[%clk 0:00:15]} 42. c7 {[%clk 0:00:34]}  Rc1 {[%clk 0:00:12]} 43. c8=Q+ {[%clk 0:00:34]}  Rxc8 {[%clk 0:00:13]} 44. Bxc8 {[%clk 0:00:35]}  Ke7 {[%clk 0:00:13]} 45. Ba6 {[%clk 0:00:34]}  Kf6 {[%clk 0:00:14]} 46. Kf3 {[%clk 0:00:35]}  g5 {[%clk 0:00:13]} 47. fxg5+ {[%clk 0:00:35]}  Kxg5 {[%clk 0:00:14]} 48. Bb5 {[%clk 0:00:32]}  h5 {[%clk 0:00:14]} 49. Kg3 {[%clk 0:00:32]}  Kf5 {[%clk 0:00:12]} 50. Kh4 {[%clk 0:00:33]}  Kg6 {[%clk 0:00:13]} 51. Bd3+ {[%clk 0:00:28]} 1-0


[Site "https://www.chess.com"]

[Event "Titled Tuesday Blitz November 01 Late 2022"]
[White "Tanenbaum, Zachary"]
[Black "Vifleemskaia, Svetlana"]
[WhiteFideId "2060850"]
[BlackFideId "4129490"]
[WhiteElo "2175"]
[BlackElo "1929"]
[Result "1-0"]
[Round "05"]
[TimeControl "180+1"]
[Date "2022.11.02"]
[WhiteClock "0:00:50"]
[BlackClock "0:00:05"]

1. e4 {[%clk 0:03:00]}  e5 {[%clk 0:02:59]} 2. Nf3 {[%clk 0:03:00]}  Nc6 {[%clk 0:02:58]} 3. Bc4 {[%clk 0:03:00]}  Nf6 {[%clk 0:02:57]} 4. d3 {[%clk 0:03:00]}  Be7 {[%clk 0:02:55]} 5. O-O {[%clk 0:03:00]}  O-O {[%clk 0:02:54]} 6. Re1 {[%clk 0:03:00]}  d6 {[%clk 0:02:53]} 7. a4 {[%clk 0:03:01]}  a6 {[%clk 0:02:49]} 8. Nbd2 {[%clk 0:03:00]}  Be6 {[%clk 0:02:48]} 9. c3 {[%clk 0:03:00]}  h6 {[%clk 0:02:46]} 10. Bxe6 {[%clk 0:02:57]}  fxe6 {[%clk 0:02:45]} 11. Nc4 {[%clk 0:02:55]}  Rb8 {[%clk 0:02:39]} 12. a5 {[%clk 0:02:51]}  Qe8 {[%clk 0:02:31]} 13. d4 {[%clk 0:02:32]}  exd4 {[%clk 0:02:28]} 14. cxd4 {[%clk 0:02:33]}  d5 {[%clk 0:02:05]} 15. exd5 {[%clk 0:02:30]}  exd5 {[%clk 0:02:04]} 16. Nce5 {[%clk 0:02:29]}  Ne4 {[%clk 0:01:52]} 17. Qb3 {[%clk 0:02:22]}  Nf6 {[%clk 0:01:43]} 18. Nxc6 {[%clk 0:02:02]}  bxc6 {[%clk 0:01:37]} 19. Qd3 {[%clk 0:02:02]}  Rb5 {[%clk 0:01:21]} 20. Ne5 {[%clk 0:02:00]}  Bb4 {[%clk 0:01:13]} 21. Re2 {[%clk 0:01:44]}  Qh5 {[%clk 0:00:47]} 22. Nxc6 {[%clk 0:01:28]}  Ng4 {[%clk 0:00:31]} 23. h3 {[%clk 0:01:27]}  Bd6 {[%clk 0:00:16]} 24. Be3 {[%clk 0:00:54]}  Bh2+ {[%clk 0:00:08]} 25. Kh1 {[%clk 0:00:53]}  Bd6 {[%clk 0:00:05]} 26. Rc1 {[%clk 0:00:50]} 1-0


[Site "https://www.chess.com"]

[Event "Titled Tuesday Blitz November 01 Late 2022"]
[White "Thomforde-Toates, Noah"]
[Black "Jaskolka, Tomasz"]
[WhiteFideId "30951992"]
[BlackFideId "1170791"]
[WhiteElo "2616"]
[BlackElo "2126"]
[Result "1-0"]
[Round "05"]
[TimeControl "180+1"]
[Date "2022.11.02"]
[WhiteClock "0:00:19"]
[BlackClock "0:00:15"]

1. d4 {[%clk 0:03:00]}  d5 {[%clk 0:02:52]} 2. Nc3 {[%clk 0:03:00]}  c6 {[%clk 0:02:53]} 3. Bf4 {[%clk 0:03:00]}  Nf6 {[%clk 0:02:52]} 4. e3 {[%clk 0:02:58]}  Bf5 {[%clk 0:02:51]} 5. f3 {[%clk 0:02:53]}  h5 {[%clk 0:02:49]} 6. Bd3 {[%clk 0:02:51]}  Bxd3 {[%clk 0:02:48]} 7. Qxd3 {[%clk 0:02:52]}  e6 {[%clk 0:02:48]} 8. Nge2 {[%clk 0:02:46]}  Bd6 {[%clk 0:02:46]} 9. h4 {[%clk 0:02:40]}  Na6 {[%clk 0:02:29]} 10. a3 {[%clk 0:02:35]}  Nc7 {[%clk 0:02:26]} 11. e4 {[%clk 0:02:25]}  dxe4 {[%clk 0:02:21]} 12. fxe4 {[%clk 0:02:23]}  Bxf4 {[%clk 0:02:19]} 13. Nxf4 {[%clk 0:02:19]}  Ng4 {[%clk 0:02:19]} 14. Nfe2 {[%clk 0:02:12]}  Qf6 {[%clk 0:02:18]} 15. Qf3 {[%clk 0:02:07]}  O-O-O {[%clk 0:02:14]} 16. Rd1 {[%clk 0:01:32]}  Qxf3 {[%clk 0:02:03]} 17. gxf3 {[%clk 0:01:32]}  Ne3 {[%clk 0:02:03]} 18. Rd3 {[%clk 0:01:24]}  Nc4 {[%clk 0:01:54]} 19. Nd1 {[%clk 0:01:18]}  f6 {[%clk 0:01:44]} 20. a4 {[%clk 0:01:16]}  g5 {[%clk 0:01:42]} 21. b3 {[%clk 0:01:13]}  Nd6 {[%clk 0:01:42]} 22. Ne3 {[%clk 0:01:10]}  g4 {[%clk 0:01:31]} 23. Kf2 {[%clk 0:00:59]}  gxf3 {[%clk 0:01:28]} 24. Kxf3 {[%clk 0:01:00]}  f5 {[%clk 0:01:25]} 25. exf5 {[%clk 0:00:53]}  exf5 {[%clk 0:01:24]} 26. Nf4 {[%clk 0:00:52]}  Rde8 {[%clk 0:01:22]} 27. Rg1 {[%clk 0:00:51]}  Rh7 {[%clk 0:01:15]} 28. Rg6 {[%clk 0:00:44]}  Kd7 {[%clk 0:01:07]} 29. Rg5 {[%clk 0:00:41]}  Ne4 {[%clk 0:00:41]} 30. Rxh5 {[%clk 0:00:32]}  Rg7 {[%clk 0:00:37]} 31. Nxf5 {[%clk 0:00:30]}  Rf7 {[%clk 0:00:37]} 32. Re3 {[%clk 0:00:25]}  Nf6 {[%clk 0:00:32]} 33. Rxe8 {[%clk 0:00:23]}  Ncxe8 {[%clk 0:00:30]} 34. Rh8 {[%clk 0:00:22]}  Nd5 {[%clk 0:00:29]} 35. Nxd5 {[%clk 0:00:22]}  Rxf5+ {[%clk 0:00:29]} 36. Nf4 {[%clk 0:00:22]}  Nf6 {[%clk 0:00:29]} 37. Ke3 {[%clk 0:00:21]}  Ng4+ {[%clk 0:00:25]} 38. Ke4 {[%clk 0:00:21]}  Rf7 {[%clk 0:00:25]} 39. Nd3 {[%clk 0:00:19]}  Nf6+ {[%clk 0:00:26]} 40. Kf5 {[%clk 0:00:19]}  Nd5+ {[%clk 0:00:25]} 41. Kg6 {[%clk 0:00:20]}  Rf6+ {[%clk 0:00:24]} 42. Kg5 {[%clk 0:00:19]}  Rf1 {[%clk 0:00:24]} 43. Rh7+ {[%clk 0:00:20]}  Kd6 {[%clk 0:00:23]} 44. Rh5 {[%clk 0:00:20]}  Rg1+ {[%clk 0:00:23]} 45. Kf5 {[%clk 0:00:20]}  Ne3+ {[%clk 0:00:23]} 46. Ke4 {[%clk 0:00:20]}  Nf1 {[%clk 0:00:22]} 47. Rh6+ {[%clk 0:00:20]}  Kd7 {[%clk 0:00:22]} 48. Ne5+ {[%clk 0:00:21]}  Kc7 {[%clk 0:00:23]} 49. Rh7+ {[%clk 0:00:21]}  Kb6 {[%clk 0:00:23]} 50. Nd7+ {[%clk 0:00:21]}  Ka5 {[%clk 0:00:22]} 51. Nc5 {[%clk 0:00:21]}  Rg4+ {[%clk 0:00:21]} 52. Kd3 {[%clk 0:00:21]}  b6 {[%clk 0:00:19]} 53. Rxa7+ {[%clk 0:00:20]}  Kb4 {[%clk 0:00:19]} 54. Ne4 {[%clk 0:00:18]}  Rxh4 {[%clk 0:00:17]} 55. Rb7 {[%clk 0:00:18]}  Rh3+ {[%clk 0:00:17]} 56. Ke2 {[%clk 0:00:18]}  Re3+ {[%clk 0:00:11]} 57. Kxf1 {[%clk 0:00:18]}  Rxe4 {[%clk 0:00:11]} 58. Rxb6+ {[%clk 0:00:18]}  Kc3 {[%clk 0:00:12]} 59. Rxc6+ {[%clk 0:00:17]}  Kd2 {[%clk 0:00:12]} 60. a5 {[%clk 0:00:17]}  Re7 {[%clk 0:00:11]} 61. a6 {[%clk 0:00:17]}  Ke3 {[%clk 0:00:12]} 62. d5 {[%clk 0:00:17]}  Kf3 {[%clk 0:00:12]} 63. Rf6+ {[%clk 0:00:16]}  Ke3 {[%clk 0:00:12]} 64. Re6+ {[%clk 0:00:17]}  Kf3 {[%clk 0:00:12]} 65. Rxe7 {[%clk 0:00:17]}  Kf4 {[%clk 0:00:12]} 66. a7 {[%clk 0:00:17]}  Kf3 {[%clk 0:00:13]} 67. a8=Q {[%clk 0:00:18]}  Kf4 {[%clk 0:00:14]} 68. Qf8+ {[%clk 0:00:18]}  Kg5 {[%clk 0:00:14]} 69. Rg7+ {[%clk 0:00:18]}  Kh6 {[%clk 0:00:15]} 70. Qh8# {[%clk 0:00:19]} 1-0


[Site "https://www.chess.com"]

[Event "Titled Tuesday Blitz November 01 Late 2022"]
[White "Timmermans, Mark"]
[Black "Sarana, Alexey"]
[WhiteFideId "1026399"]
[BlackFideId "24133795"]
[WhiteElo "2460"]
[BlackElo "2689"]
[Result "0-1"]
[Round "05"]
[TimeControl "180+1"]
[Date "2022.11.01"]
[WhiteClock "0:00:04"]
[BlackClock "0:00:03"]

1. b4 {[%clk 0:02:53]}  e6 {[%clk 0:02:57]} 2. Bb2 {[%clk 0:02:52]}  Nf6 {[%clk 0:02:58]} 3. b5 {[%clk 0:02:52]}  c5 {[%clk 0:02:58]} 4. c4 {[%clk 0:02:52]}  d5 {[%clk 0:02:58]} 5. e3 {[%clk 0:02:48]}  b6 {[%clk 0:02:58]} 6. a4 {[%clk 0:02:48]}  a5 {[%clk 0:02:57]} 7. Nf3 {[%clk 0:02:49]}  Bb7 {[%clk 0:02:58]} 8. Be2 {[%clk 0:02:47]}  Nbd7 {[%clk 0:02:58]} 9. O-O {[%clk 0:02:45]}  Bd6 {[%clk 0:02:59]} 10. d4 {[%clk 0:02:45]}  O-O {[%clk 0:02:57]} 11. Nbd2 {[%clk 0:02:44]}  Rc8 {[%clk 0:02:57]} 12. Rc1 {[%clk 0:02:43]}  Qe7 {[%clk 0:02:56]} 13. Qb3 {[%clk 0:02:41]}  cxd4 {[%clk 0:02:55]} 14. Nxd4 {[%clk 0:02:41]}  Nc5 {[%clk 0:02:55]} 15. Qa2 {[%clk 0:02:40]}  Nfe4 {[%clk 0:02:52]} 16. Nxe4 {[%clk 0:02:39]}  dxe4 {[%clk 0:02:53]} 17. Rfd1 {[%clk 0:02:35]}  f5 {[%clk 0:02:52]} 18. Ba3 {[%clk 0:02:29]}  Rf6 {[%clk 0:02:51]} 19. g3 {[%clk 0:02:26]}  g5 {[%clk 0:02:42]} 20. Nb3 {[%clk 0:02:24]}  Nd3 {[%clk 0:02:14]} 21. Bxd6 {[%clk 0:02:05]}  Qxd6 {[%clk 0:02:15]} 22. Qa1 {[%clk 0:01:51]}  e5 {[%clk 0:02:12]} 23. c5 {[%clk 0:01:49]}  bxc5 {[%clk 0:02:11]} 24. Nxa5 {[%clk 0:01:49]}  Ba8 {[%clk 0:02:08]} 25. Nc4 {[%clk 0:01:48]}  Qd5 {[%clk 0:02:08]} 26. a5 {[%clk 0:01:42]}  f4 {[%clk 0:02:05]} 27. a6 {[%clk 0:01:31]}  fxg3 {[%clk 0:02:01]} 28. hxg3 {[%clk 0:01:30]}  Rxf2 {[%clk 0:01:58]} 29. Nb6 {[%clk 0:01:16]}  Qe6 {[%clk 0:01:52]} 30. Bxd3 {[%clk 0:01:06]}  exd3 {[%clk 0:01:45]} 31. Kxf2 {[%clk 0:01:07]}  Rf8+ {[%clk 0:00:31]} 32. Ke1 {[%clk 0:01:06]}  Be4 {[%clk 0:00:30]} 33. Qa4 {[%clk 0:00:49]}  Qg4 {[%clk 0:00:15]} 34. Kd2 {[%clk 0:00:43]}  Qe2+ {[%clk 0:00:10]} 35. Kc3 {[%clk 0:00:43]}  Qxe3 {[%clk 0:00:08]} 36. Re1 {[%clk 0:00:26]}  d2+ {[%clk 0:00:04]} 37. Kb2 {[%clk 0:00:07]}  dxe1=Q {[%clk 0:00:04]} 38. Rc2 {[%clk 0:00:08]}  Bxc2 {[%clk 0:00:04]} 39. Qc4+ {[%clk 0:00:04]}  Kg7 {[%clk 0:00:03]} 0-1


[Site "https://www.chess.com"]

[Event "Titled Tuesday Blitz November 01 Late 2022"]
[White "Urbina Perez, Juan Antonio"]
[Black "Ambartsumova, Karina"]
[WhiteFideId "2217368"]
[BlackFideId "4166299"]
[WhiteElo "2197"]
[BlackElo "2299"]
[Result "0-1"]
[Round "05"]
[TimeControl "180+1"]
[Date "2022.11.02"]
[WhiteClock "0:00:07"]
[BlackClock "0:00:07"]

1. e4 {[%clk 0:02:55]}  e5 {[%clk 0:02:58]} 2. Nf3 {[%clk 0:02:53]}  Nc6 {[%clk 0:02:58]} 3. Bb5 {[%clk 0:02:52]}  Nf6 {[%clk 0:02:56]} 4. O-O {[%clk 0:02:51]}  Nxe4 {[%clk 0:02:55]} 5. Re1 {[%clk 0:02:50]}  Nd6 {[%clk 0:02:54]} 6. a4 {[%clk 0:02:51]}  Be7 {[%clk 0:02:49]} 7. Nc3 {[%clk 0:02:43]}  O-O {[%clk 0:02:39]} 8. Nxe5 {[%clk 0:02:42]}  Nxe5 {[%clk 0:02:34]} 9. Rxe5 {[%clk 0:02:43]}  c6 {[%clk 0:02:30]} 10. Bf1 {[%clk 0:02:41]}  Bf6 {[%clk 0:02:30]} 11. Re1 {[%clk 0:02:32]}  Nf5 {[%clk 0:02:30]} 12. Ne4 {[%clk 0:02:03]}  d5 {[%clk 0:02:29]} 13. Nxf6+ {[%clk 0:02:02]}  Qxf6 {[%clk 0:02:30]} 14. c3 {[%clk 0:02:01]}  d4 {[%clk 0:02:11]} 15. Qf3 {[%clk 0:02:00]}  Bd7 {[%clk 0:02:08]} 16. Bd3 {[%clk 0:01:15]}  Rfe8 {[%clk 0:02:06]} 17. Rf1 {[%clk 0:01:02]}  Qg5 {[%clk 0:01:38]} 18. Bxf5 {[%clk 0:00:58]}  Bxf5 {[%clk 0:01:37]} 19. d3 {[%clk 0:00:59]}  Qg6 {[%clk 0:01:36]} 20. Bf4 {[%clk 0:00:36]}  Bxd3 {[%clk 0:01:29]} 21. Rfe1 {[%clk 0:00:36]}  dxc3 {[%clk 0:01:05]} 22. bxc3 {[%clk 0:00:37]}  h6 {[%clk 0:01:03]} 23. Qg3 {[%clk 0:00:35]}  Qxg3 {[%clk 0:00:49]} 24. hxg3 {[%clk 0:00:36]}  f6 {[%clk 0:00:44]} 25. f3 {[%clk 0:00:35]}  Kf7 {[%clk 0:00:42]} 26. Kf2 {[%clk 0:00:34]}  Bc2 {[%clk 0:00:37]} 27. a5 {[%clk 0:00:34]}  b5 {[%clk 0:00:27]} 28. Rxe8 {[%clk 0:00:26]}  Rxe8 {[%clk 0:00:25]} 29. a6 {[%clk 0:00:27]}  c5 {[%clk 0:00:19]} 30. Be3 {[%clk 0:00:26]}  Rc8 {[%clk 0:00:18]} 31. Ra2 {[%clk 0:00:23]}  Ba4 {[%clk 0:00:14]} 32. Rd2 {[%clk 0:00:19]}  Ke6 {[%clk 0:00:14]} 33. Bf4 {[%clk 0:00:17]}  Rc6 {[%clk 0:00:14]} 34. Be3 {[%clk 0:00:14]}  Rxa6 {[%clk 0:00:11]} 35. Bxc5 {[%clk 0:00:13]}  Bb3 {[%clk 0:00:11]} 36. Bb4 {[%clk 0:00:13]}  Bc4 {[%clk 0:00:10]} 37. g4 {[%clk 0:00:12]}  Ra1 {[%clk 0:00:10]} 38. Ke3 {[%clk 0:00:12]}  a5 {[%clk 0:00:09]} 39. Bc5 {[%clk 0:00:11]}  Re1+ {[%clk 0:00:07]} 40. Kf2 {[%clk 0:00:11]}  Rf1+ {[%clk 0:00:07]} 41. Ke3 {[%clk 0:00:10]}  Rc1 {[%clk 0:00:07]} 42. Bd4 {[%clk 0:00:08]}  a4 {[%clk 0:00:06]} 43. Kf2 {[%clk 0:00:07]}  a3 {[%clk 0:00:07]} 0-1


[Site "https://www.chess.com"]

[Event "Titled Tuesday Blitz November 01 Late 2022"]
[White "Veleshnja, Zino"]
[Black "Aghasiyev, Kamal"]
[WhiteFideId "4701313"]
[BlackFideId "13402854"]
[WhiteElo "2167"]
[BlackElo "2341"]
[Result "0-1"]
[Round "05"]
[TimeControl "180+1"]
[Date "2022.11.02"]
[WhiteClock "0:00:15"]
[BlackClock "0:00:09"]

1. d4 {[%clk 0:03:00]}  d5 {[%clk 0:02:59]} 2. c4 {[%clk 0:03:00]}  e6 {[%clk 0:02:59]} 3. cxd5 {[%clk 0:02:59]}  exd5 {[%clk 0:02:59]} 4. Nc3 {[%clk 0:03:00]}  Nf6 {[%clk 0:02:59]} 5. Bg5 {[%clk 0:03:00]}  c6 {[%clk 0:02:59]} 6. Qc2 {[%clk 0:02:59]}  Nbd7 {[%clk 0:02:59]} 7. e3 {[%clk 0:02:59]}  Be7 {[%clk 0:02:59]} 8. Bd3 {[%clk 0:03:00]}  h6 {[%clk 0:02:59]} 9. Bh4 {[%clk 0:03:00]}  Nh5 {[%clk 0:02:59]} 10. Bxe7 {[%clk 0:02:58]}  Qxe7 {[%clk 0:03:00]} 11. Nge2 {[%clk 0:02:59]}  Nb6 {[%clk 0:02:58]} 12. O-O {[%clk 0:02:58]}  O-O {[%clk 0:02:57]} 13. a4 {[%clk 0:02:55]}  a5 {[%clk 0:02:50]} 14. Ng3 {[%clk 0:02:52]}  Nxg3 {[%clk 0:02:48]} 15. hxg3 {[%clk 0:02:52]}  Be6 {[%clk 0:02:34]} 16. Rfe1 {[%clk 0:02:46]}  f5 {[%clk 0:02:22]} 17. Ne2 {[%clk 0:02:38]}  g5 {[%clk 0:02:10]} 18. Qc5 {[%clk 0:02:37]}  Qd8 {[%clk 0:02:04]} 19. g4 {[%clk 0:02:29]}  fxg4 {[%clk 0:01:57]} 20. Ng3 {[%clk 0:02:30]}  Qc7 {[%clk 0:01:35]} 21. e4 {[%clk 0:02:28]}  Nd7 {[%clk 0:01:31]} 22. Qc2 {[%clk 0:02:21]}  dxe4 {[%clk 0:01:17]} 23. Rxe4 {[%clk 0:02:08]}  Bd5 {[%clk 0:01:11]} 24. Re7 {[%clk 0:02:05]}  Rf7 {[%clk 0:01:11]} 25. Rae1 {[%clk 0:01:59]}  Qd6 {[%clk 0:01:09]} 26. Nf5 {[%clk 0:01:49]}  Rxf5 {[%clk 0:01:05]} 27. Bxf5 {[%clk 0:01:49]}  Nf8 {[%clk 0:00:51]} 28. Qc5 {[%clk 0:01:32]}  Qf4 {[%clk 0:00:45]} 29. R7e5 {[%clk 0:01:19]}  g3 {[%clk 0:00:43]} 30. fxg3 {[%clk 0:01:18]}  Qxg3 {[%clk 0:00:43]} 31. Qc2 {[%clk 0:01:07]}  Qh4 {[%clk 0:00:39]} 32. Qf2 {[%clk 0:00:57]}  Qxf2+ {[%clk 0:00:36]} 33. Kxf2 {[%clk 0:00:58]}  Ra6 {[%clk 0:00:36]} 34. Re8 {[%clk 0:00:48]}  Rb6 {[%clk 0:00:33]} 35. R1e2 {[%clk 0:00:49]}  Kf7 {[%clk 0:00:31]} 36. Bc8 {[%clk 0:00:44]}  Ng6 {[%clk 0:00:28]} 37. g3 {[%clk 0:00:40]}  Rb3 {[%clk 0:00:25]} 38. Rd8 {[%clk 0:00:34]}  Rf3+ {[%clk 0:00:22]} 39. Ke1 {[%clk 0:00:34]}  Rxg3 {[%clk 0:00:21]} 40. Rd6 {[%clk 0:00:34]}  Nf4 {[%clk 0:00:19]} 41. Rd7+ {[%clk 0:00:33]}  Kg6 {[%clk 0:00:17]} 42. Re8 {[%clk 0:00:29]}  Rg1+ {[%clk 0:00:15]} 43. Kd2 {[%clk 0:00:26]}  Rg2+ {[%clk 0:00:15]} 44. Kc3 {[%clk 0:00:24]}  Rg3+ {[%clk 0:00:15]} 45. Kd2 {[%clk 0:00:24]}  Kh5 {[%clk 0:00:13]} 46. Rxb7 {[%clk 0:00:22]}  Rg2+ {[%clk 0:00:12]} 47. Kc3 {[%clk 0:00:22]}  Rg3+ {[%clk 0:00:12]} 48. Kc2 {[%clk 0:00:22]}  Kh4 {[%clk 0:00:12]} 49. Rh8 {[%clk 0:00:21]}  h5 {[%clk 0:00:11]} 50. Rbh7 {[%clk 0:00:20]}  Be4+ {[%clk 0:00:11]} 51. Kd2 {[%clk 0:00:19]}  Rd3+ {[%clk 0:00:11]} 52. Ke1 {[%clk 0:00:18]}  Bxh7 {[%clk 0:00:09]} 53. Rxh7 {[%clk 0:00:19]}  Rxd4 {[%clk 0:00:10]} 54. b3 {[%clk 0:00:16]}  Rb4 {[%clk 0:00:09]} 55. Bf5 {[%clk 0:00:15]}  Rxb3 {[%clk 0:00:09]} 0-1


[Site "https://www.chess.com"]